bitfinex-derivatives/quotes_SOLF0:USTF0_20250923
["timestamp","ask_amount","ask_price","bid_price","bid_amount"]
[1758648824322,4.29066255,218.16,218.08,4.1244]
[1758648824618,11.95066255,218.15,217.93,64.2001]
[1758648824822,4.29066255,218.14,218.01,7.27]
[1758648825121,7.66,218.12,218.01,7.27]
[1758648825321,4.29066255,218.11,218.01,7.27]
[1758648825519,1.14611987,218.1,218.01,7.27]
[1758648825724,7.66,218.12,218.01,7.27]
[1758648826025,4.1243,218.09,218.01,7.27]
[1758648826215,7.66,218.12,218.01,7.27]
[1758648826525,4.1249,218.06,217.98,4.1263]
[1758648827522,7.66,218.08,217.99,4.126]
[1758648827722,4.30103375,218.07,217.99,4.126]
[1758648828021,4.1248,218.07,217.99,4.126]
[1758648828418,7.66,218.08,218.01,4.1257]
[1758648828722,4.1241,218.1,218.01,4.1257]
[1758648828920,3.15689703,218.09,218.01,4.1257]
[1758648829125,3.1597679,218.08,218.01,4.1257]
[1758648829317,3.15951332,218.07,218.0,7.27]
[1758648829517,3.15951603,218.06,218.0,7.27]
[1758648829720,3.15951603,218.06,217.87,70.79305918]
[1758648829721,3.15964978,218.05,217.97,4.1265]
[1758648829915,4.125,218.06,217.97,4.1265]
[1758648830119,3.159818,218.05,217.97,4.1265]
[1758648830326,4.125,218.06,217.97,4.1265]
[1758648830516,7.66,218.04,217.9,188.1814]
[1758648830821,64.1538,218.1,217.94,7.27]
[1758648830822,3.16070755,218.03,217.94,7.27]
[1758648831022,7.66,218.09,217.98,7.27]
[1758648831217,3.16132435,218.08,217.98,7.27]
[1758648831417,3.16132435,218.07,217.98,7.27]
[1758648831621,3.16132435,218.06,217.98,7.27]
[1758648831918,3.16132435,218.05,218.0,7.27]
[1758648832124,64.1593,218.08,217.94,7.27]
[1758648832325,7.66,218.05,217.94,7.27]
[1758648832526,3.16330868,218.04,217.94,7.27]
[1758648832728,3.16330868,218.03,217.94,7.27]
[1758648832926,3.16330868,218.02,217.94,7.27]
[1758648833125,4.1254,218.03,217.95,4.1267]
[1758648833428,3.16292344,218.02,217.95,4.1267]
[1758648833627,4.1258,218.02,217.94,7.27]
[1758648833823,67.34184743,218.01,217.89,7.3]
[1758648834131,10.30234743,218.0,217.89,7.3]
[1758648834318,3.16234743,217.99,217.89,7.3]
[1758648834519,4.1265,217.98,217.89,11.4279]
[1758648834723,3.16234743,217.97,217.89,11.4279]
[1758648834925,3.16234743,217.96,217.89,7.3]
[1758648835230,7.14,218.0,217.89,7.3]
[1758648835448,4.31008701,217.99,217.89,7.3]
[1758648835628,7.14,218.05,217.9,64.2116]
[1758648835829,7.14,218.05,217.92,64.205]
[1758648835830,4.31095687,218.04,217.92,64.205]
[1758648836029,4.31095687,218.03,217.96,4.1266]
[1758648836229,3.16402004,218.02,217.94,7.3]
[1758648836424,7.14,218.05,217.94,7.3]
[1758648836631,3.16526042,218.04,217.94,7.3]
[1758648836928,3.16526042,218.03,217.94,7.3]
[1758648837128,3.16526042,218.02,217.94,7.3]
[1758648837333,7.14,218.05,217.94,7.3]
[1758648837533,3.16862984,218.04,217.98,4.1263]
[1758648837733,3.16862984,218.03,217.98,4.1263]
[1758648837940,3.16862984,218.02,217.98,7.3]
[1758648838125,3.17137001,218.01,217.98,7.3]
[1758648838326,7.14,218.05,217.98,7.3]
[1758648838533,4.3181869,218.04,217.98,7.3]
[1758648838739,7.14,218.05,217.98,7.3]
[1758648838740,3.17137114,218.03,217.98,7.3]
[1758648838935,3.17137114,218.02,217.98,7.3]
[1758648839133,3.17137114,218.01,217.98,7.3]
[1758648839329,3.17137114,218.0,217.98,7.3]
[1758648839530,7.14,218.05,217.98,7.3]
[1758648839731,4.32147715,218.04,217.98,7.3]
[1758648839930,11.46149287,218.03,217.98,7.3]
[1758648840235,3.17465264,218.02,217.94,4.127]
[1758648840431,3.17465264,218.01,217.94,4.127]
[1758648840635,3.17465264,218.0,217.94,4.127]
[1758648840939,7.14,218.04,217.94,11.427]
[1758648841131,3.17382752,218.03,217.94,7.3]
[1758648841331,3.17382752,218.02,217.94,7.3]
[1758648841532,3.17382752,218.01,217.94,7.3]
[1758648841734,5.09020374,218.08,217.97,64.1909]
[1758648841937,4.31889196,218.07,217.97,71.4909]
[1758648842134,3.17208427,218.06,217.97,7.3]
[1758648842428,3.17208427,218.05,218.01,4.1257]
[1758648842635,3.17208427,218.04,218.01,4.1257]
[1758648842944,7.14,218.09,217.98,64.187]
[1758648843142,4.31960786,218.08,217.98,64.187]
[1758648843439,3.17293526,218.07,217.98,64.187]
[1758648843636,3.17293526,218.06,217.98,64.187]
[1758648843833,4.1237,218.12,218.03,4.1253]
[1758648844041,3.17367661,218.11,218.02,7.3]
[1758648844236,3.17367661,218.1,218.02,7.3]
[1758648844442,3.17367661,218.09,218.05,11.4249]
[1758648844739,11.2631,218.15,218.05,11.4249]
[1758648844944,4.32088709,218.14,218.05,11.4249]
[1758648845140,4.32088709,218.13,218.06,4.1246]
[1758648845336,3.17443041,218.12,218.06,4.1246]
[1758648845537,10.31443041,218.11,218.06,4.1246]
[1758648845731,3.17443041,218.1,218.03,4.1254]
[1758648845941,3.17443041,218.09,218.03,4.1254]
[1758648846137,10.31443041,218.08,218.0,11.4258]
[1758648846336,3.17774596,218.07,218.0,11.4258]
[1758648846533,7.14,218.08,218.0,4.1258]
[1758648846736,7.30244864,218.07,217.97,4.1264]
[1758648846931,3.17764864,218.06,217.96,7.3]
[1758648847131,3.17764864,218.05,217.96,7.3]
[1758648847337,4.1248,218.07,217.96,7.3]
[1758648847546,3.17833988,218.06,217.96,7.3]
[1758648847737,3.17833988,218.05,217.96,7.3]
[1758648848039,4.1248,218.07,217.96,7.3]
[1758648848338,3.1785965,218.06,217.96,7.3]
[1758648848544,3.1785965,218.05,217.99,4.1261]
[1758648848743,3.1785965,218.05,217.96,7.3]
[1758648848744,4.125,218.05,217.96,7.3]
[1758648849042,7.14,218.03,217.89,7.3]
[1758648849243,4.32540945,218.02,217.89,7.3]
[1758648849445,7.14,217.99,217.89,7.3]
[1758648849945,7.14,217.99,217.91,4.1275]
[1758648850246,3.1782506,217.98,217.91,4.1275]
[1758648850435,7.14,217.99,217.91,4.1275]
[1758648850638,3.17790644,217.98,217.89,7.3]
[1758648850938,7.14,217.96,217.88,4.1281]
[1758648851134,3.17790644,217.95,217.88,4.1281]
[1758648851338,3.17790644,217.94,217.88,4.1281]
[1758648851641,7.14,217.96,217.89,4.1279]
[1758648851841,7.14,217.96,217.86,64.2227]
[1758648851842,3.176306,217.95,217.86,64.2227]
[1758648852144,7.14,217.96,217.86,64.2227]
[1758648852345,3.17613008,217.95,217.86,64.2227]
[1758648852548,7.14,217.96,217.86,64.2227]
[1758648852839,7.14,217.96,217.9,4.1277]
[1758648853240,7.14,217.96,217.85,123.96]
[1758648853440,3.17312281,217.95,217.85,123.96]
[1758648853646,7.14,217.96,217.85,123.96]
[1758648853848,7.14,217.96,217.85,7.3]
[1758648854048,7.14,217.96,217.88,4.1281]
[1758648854248,7.14,217.96,217.85,7.3]
[1758648854448,7.14,217.96,217.86,64.2235]
[1758648854944,7.14,217.96,217.89,4.1279]
[1758648855350,11.2667,217.96,217.87,4.1284]
[1758648855550,7.14,217.96,217.85,7.3]
[1758648855945,7.14,217.96,217.86,64.2234]
[1758648856148,7.7,218.03,217.89,7.62]
[1758648856446,3.1724559,218.02,217.89,7.62]
[1758648856648,7.7,218.03,217.87,64.2205]
[1758648856649,3.1724559,218.01,217.91,64.2082]
[1758648856855,3.1724559,218.0,217.92,7.62]
[1758648857047,7.7,218.03,217.92,7.62]
[1758648857249,3.17200389,218.02,217.93,4.1273]
[1758648857450,3.17200389,218.01,217.92,7.62]
[1758648857745,7.7,218.03,217.92,7.62]
[1758648857954,3.16989403,218.02,217.92,7.62]
[1758648858155,3.16989403,218.01,217.92,7.62]
[1758648858358,7.7,218.03,217.92,7.62]
[1758648858555,3.17009456,218.02,217.92,7.62]
[1758648858754,7.7,218.03,217.93,64.2019]
[1758648858961,7.7,218.03,217.92,124.06]
[1758648859255,7.29587681,218.02,217.93,4.1273]
[1758648859456,3.17017681,218.01,217.93,4.1273]
[1758648859656,3.17017681,218.0,217.93,4.1273]
[1758648859856,7.7,218.03,217.93,4.1273]
[1758648860061,7.2956378,218.02,217.92,7.62]
[1758648860358,7.7,218.0,217.87,7.62]
[1758648860559,7.7,217.98,217.87,7.62]
[1758648860862,3.1699378,217.97,217.87,7.62]
[1758648861060,7.7,217.98,217.87,7.62]
[1758648861260,3.17011555,217.97,217.87,7.62]
[1758648861462,7.7,217.98,217.87,7.62]
[1758648861661,3.16998374,217.97,217.88,4.1281]
[1758648861861,7.7,217.98,217.88,4.1281]
[1758648862064,3.16998608,217.97,217.88,4.1281]
[1758648862362,4.1268,217.96,217.88,4.1281]
[1758648862661,7.7,217.98,217.88,4.1281]
[1758648862860,3.16998302,217.97,217.88,4.1281]
[1758648863058,7.7,217.98,217.88,4.1281]
[1758648863253,3.1697385,217.97,217.9,4.1278]
[1758648863458,7.7,217.98,217.87,71.8397]
[1758648863665,7.7,217.98,217.87,7.62]
[1758648865366,3.16963118,217.97,217.87,7.62]
[1758648865569,4.127,217.95,217.87,7.62]
[1758648866462,4.1274,217.93,217.82,354.05]
[1758648867771,7.29761852,217.92,217.85,4.1286]
[1758648867970,4.1276,217.92,217.85,4.1286]
[1758648868564,4.1279,217.9,217.82,358.1792]
[1758648869266,6.97,217.94,217.83,4.129]
[1758648869267,4.1275,217.92,217.83,4.129]
[1758648869869,7.29846432,217.91,217.83,4.129]
[1758648870163,4.1279,217.91,217.83,4.129]
[1758648870370,4.1281,217.89,217.83,4.129]
[1758648870572,6.97,217.91,217.82,7.37]
[1758648870771,3.16998774,217.9,217.82,7.37]
[1758648870970,3.17009373,217.89,217.82,7.37]
[1758648871269,6.97,217.91,217.82,7.37]
[1758648871270,69.27940374,217.98,217.82,7.37]
[1758648871470,127.40725104,217.97,217.82,7.37]
[1758648871669,4.31725104,217.96,217.82,7.37]
[1758648871872,11.28725104,217.95,217.82,7.37]
[1758648872072,4.31725104,217.94,217.82,7.37]
[1758648872274,3.16978417,217.93,217.82,7.37]
[1758648872469,3.16978417,217.92,217.82,7.37]
[1758648872667,6.97,217.9,217.77,7.37]
[1758648872970,6.97,217.88,217.77,7.37]
[1758648873167,6.97,217.88,217.81,4.1296]
[1758648873766,6.97,217.88,217.77,7.37]
[1758648873970,3.16813385,217.87,217.77,7.37]
[1758648874170,3.16813385,217.86,217.77,7.37]
[1758648874376,3.16813385,217.85,217.77,7.37]
[1758648874574,6.97,217.88,217.77,7.37]
[1758648874777,3.16721333,217.87,217.8,4.1297]
[1758648874975,3.16721333,217.86,217.77,7.37]
[1758648875176,11.0982,217.88,217.77,7.37]
[1758648875177,6.97,217.88,217.77,7.37]
[1758648875373,3.1673771,217.87,217.77,7.37]
[1758648875571,6.97,217.88,217.77,7.37]
[1758648875774,10.13762902,217.87,217.82,4.1292]
[1758648875969,6.97,217.87,217.77,7.37]
[1758648876667,6.97,217.87,217.82,4.1292]
[1758648876981,3.16725599,217.86,217.73,7.37]
[1758648877273,6.97,217.88,217.73,7.37]
[1758648877274,7.29605599,217.85,217.73,7.37]
[1758648877466,4.1288,217.85,217.73,7.37]
[1758648877777,4.1284,217.87,217.78,4.1299]
[1758648877981,3.16590182,217.86,217.73,7.37]
[1758648878176,10.13590182,217.85,217.73,7.37]
[1758648878379,3.16590182,217.84,217.73,7.37]
[1758648878678,6.97,217.85,217.73,7.37]
[1758648878880,3.16417177,217.84,217.73,7.37]
[1758648879080,6.97,217.85,217.78,4.1301]
[1758648879280,3.16309389,217.84,217.78,4.1301]
[1758648879575,6.97,217.85,217.76,7.37]
[1758648880577,6.97,217.85,217.79,4.1298]
[1758648880975,6.97,217.85,217.77,4.1303]
[1758648881275,6.97,217.85,217.76,7.37]
[1758648881477,6.97,217.85,217.8,4.1297]
[1758648881780,42.77,217.91,217.79,7.37]
[1758648881981,4.30816842,217.9,217.79,7.37]
[1758648882277,6.97,217.88,217.79,7.37]
[1758648882890,6.97,217.88,217.81,4.1294]
[1758648883378,3.1595426,217.87,217.77,4.1303]
[1758648883578,6.97,217.85,217.77,4.1303]
[1758648884484,6.97,217.85,217.75,7.37]
[1758648884781,3.15863691,217.84,217.75,7.37]
[1758648885078,6.97,217.83,217.76,4.1305]
[1758648885675,4.1295,217.82,217.74,4.1308]
[1758648885876,6.97,217.81,217.74,4.1308]
[1758648886183,4.1301,217.79,217.72,4.1312]
[1758648886376,6.97,217.78,217.66,7.37]
[1758648886877,6.97,217.78,217.67,64.2791]
[1758648887381,6.97,217.78,217.66,7.37]
[1758648887382,6.97,217.78,217.69,7.37]
[1758648887576,6.97,217.82,217.72,7.37]
[1758648888787,6.97,217.82,217.76,4.1303]
[1758648889280,11.0995,217.82,217.72,7.37]
[1758648889982,6.97,217.82,217.72,7.37]
[1758648890582,6.97,217.82,217.76,4.1303]
[1758648891290,6.97,217.82,217.77,4.1302]
[1758648891484,6.97,217.82,217.72,7.37]
[1758648891485,6.97,217.82,217.73,64.2606]
[1758648892880,6.97,217.87,217.76,64.2517]
[1758648893084,3.161167,217.86,217.76,64.2517]
[1758648893285,3.161167,217.85,217.76,64.2517]
[1758648893493,6.97,217.87,217.81,4.1296]
[1758648893691,7.13,217.85,217.81,4.1296]
[1758648894292,0.7992008,217.88,217.82,11.7892]
[1758648894482,10.29335539,217.87,217.82,11.7892]
[1758648894688,10.29335539,217.86,217.82,4.1292]
[1758648895003,10.29335539,217.85,217.82,4.1292]
[1758648895196,7.13,217.85,217.82,4.1292]
[1758648895802,7.13,217.85,217.79,4.1298]
[1758648896099,7.13,217.85,217.78,7.66]
[1758648896305,3.1624822,217.84,217.72,7.66]
[1758648896605,3.1624822,217.83,217.72,7.66]
[1758648896803,4.1291,217.84,217.77,4.1302]
[1758648897106,3.16232548,217.83,217.77,4.1302]
[1758648897405,10.29232548,217.82,217.77,4.1302]
[1758648897608,7.13,217.82,217.77,4.1302]
[1758648897902,7.13,217.82,217.74,4.1307]
[1758648898507,11.2595,217.82,217.75,4.1305]
[1758648898705,7.13,217.82,217.72,7.66]
[1758648899518,7.13,217.82,217.76,4.1304]
[1758648900313,4.1287,217.86,217.75,7.66]
[1758648900511,3.16447474,217.85,217.77,7.66]
[1758648900808,3.16447474,217.84,217.77,7.66]
[1758648901013,21.53849107,217.88,217.77,7.66]
[1758648901215,4.3117585,217.87,217.77,7.66]
[1758648901410,3.16396971,217.86,217.81,4.1294]
[1758648901606,10.29396971,217.85,217.77,7.66]
[1758648901806,0.7992008,217.88,217.77,7.66]
[1758648902004,3.16502807,217.87,217.77,7.66]
[1758648902210,3.16502807,217.86,217.82,4.1292]
[1758648902512,3.16502807,217.85,217.78,64.2465]
[1758648902708,0.7992008,217.88,217.84,4.1289]
[1758648902910,3.16623227,217.87,217.84,4.1289]
[1758648903214,3.16623227,217.87,217.79,7.66]
[1758648903215,0.7992008,217.88,217.79,7.66]
[1758648903512,3.16762106,217.87,217.81,7.66]
[1758648903713,7.13,217.91,217.81,7.66]
[1758648903911,3.16778318,217.9,217.83,7.66]
[1758648904103,3.16778318,217.89,217.83,7.66]
[1758648904305,3.16778318,217.88,217.81,7.66]
[1758648904509,7.13,217.91,217.81,7.66]
[1758648904704,4.31719167,217.9,217.81,7.66]
[1758648904910,11.44722594,217.89,217.76,7.66]
[1758648905115,4.31722594,217.88,217.76,7.66]
[1758648905313,4.31722594,217.87,217.76,7.66]
[1758648905511,3.16961778,217.86,217.76,7.66]
[1758648905702,3.16961778,217.85,217.76,7.66]
[1758648905911,3.16961778,217.84,217.76,7.66]
[1758648906312,3.16961778,217.84,217.78,4.13]
[1758648907512,3.16961778,217.84,217.8,11.7897]
[1758648907717,10.29961778,217.84,217.8,4.1297]
[1758648907917,7.13,217.82,217.78,4.1301]
[1758648908107,7.13,217.82,217.75,7.66]
[1758648908309,3.17380902,217.81,217.71,11.84886384]
[1758648908510,7.13,217.79,217.67,7.66]
[1758648908824,3.1730478,217.78,217.67,7.66]
[1758648909014,7.13,217.76,217.72,4.1312]
[1758648909321,7.13,217.76,217.67,7.66]
[1758648909522,7.13,217.76,217.7,4.1316]
[1758648910420,3.17362662,217.75,217.7,4.1316]
[1758648910721,7.13,217.76,217.67,7.66]
[1758648910909,3.17320271,217.75,217.67,7.66]
[1758648911115,7.13,217.76,217.67,7.66]
[1758648911320,3.17435429,217.75,217.67,7.66]
[1758648911620,7.13,217.76,217.67,7.66]
[1758648911823,3.1742396,217.75,217.7,4.1315]
[1758648912122,7.13,217.76,217.7,4.1315]
[1758648912318,3.17376952,217.75,217.67,7.66]
[1758648912521,11.47206573,217.74,217.6,7.3]
[1758648912826,4.32212872,217.73,217.6,7.3]
[1758648913016,7.15,217.71,217.6,7.3]
[1758648913321,4.3221373,217.72,217.57,115.88]
[1758648913322,7.15,217.69,217.57,115.88]
[1758648913513,7.15,217.69,217.61,4.1332]
[1758648913715,3.17340903,217.68,217.58,7.3]
[1758648913915,3.17341187,217.67,217.58,7.3]
[1758648914126,7.15,217.69,217.58,7.3]
[1758648914316,3.17111043,217.68,217.58,7.3]
[1758648914517,3.17111043,217.67,217.58,7.3]
[1758648914717,7.15,217.69,217.63,4.133]
[1758648914920,10.32173203,217.68,217.58,7.3]
[1758648915129,7.15,217.68,217.58,7.3]
[1758648915616,7.15,217.68,217.6,64.299]
[1758648915813,30.94,217.76,217.6,64.299]
[1758648916020,7.15,217.72,217.61,7.3]
[1758648916321,3.17020089,217.71,217.61,7.3]
[1758648916522,4.1322,217.67,217.58,4.1338]
[1758648916719,7.15,217.69,217.56,64.3119]
[1758648916918,3.168538,217.68,217.56,64.3119]
[1758648917113,7.15,217.69,217.59,7.3]
[1758648917321,3.16695641,217.68,217.59,7.3]
[1758648917520,7.15,217.69,217.59,7.3]
[1758648917715,7.15,217.69,217.62,4.1331]
[1758648917716,3.16748166,217.68,217.62,4.1331]
[1758648917922,7.15,217.69,217.62,4.1331]
[1758648918225,7.29958287,217.68,217.59,11.4336]
[1758648918423,7.15,217.69,217.59,11.4336]
[1758648918727,7.15,217.67,217.55,7.3]
[1758648918923,7.15,217.67,217.55,71.6142]
[1758648919321,4.1324,217.66,217.56,4.1341]
[1758648920328,7.15,217.63,217.48,7.3]
[1758648920625,3.16132777,217.62,217.48,7.3]
[1758648920829,11.2836,217.6,217.48,7.3]
[1758648921024,7.15,217.6,217.48,7.3]
[1758648921220,67.4615939,217.59,217.43,7.3]
[1758648921421,4.1345,217.56,217.46,4.1362]
[1758648921717,7.15,217.55,217.46,4.1362]
[1758648922326,7.15,217.53,217.39,7.3]
[1758648922631,7.15,217.55,217.39,7.3]
[1758648922819,7.15,217.55,217.45,7.3]
[1758648923017,7.15,217.55,217.46,64.3408]
[1758648923229,7.15,217.55,217.47,64.3383]
[1758648923429,7.15,217.55,217.45,7.3]
[1758648923728,7.15,217.55,217.46,64.3412]
[1758648923928,7.15,217.55,217.47,64.3384]
[1758648924332,7.63,217.6,217.48,64.3351]
[1758648924521,7.63,217.6,217.46,71.6812]
[1758648924829,7.63,217.6,217.55,4.1345]
[1758648925017,7.63,217.6,217.53,64.3206]
[1758648925222,7.63,217.64,217.52,7.34]
[1758648925420,7.63,217.64,217.53,64.3203]
[1758648925716,0.46281106,217.69,217.55,7.34]
[1758648925717,63.51,217.69,217.55,7.34]
[1758648925917,7.63,217.61,217.51,4.1351]
[1758648926516,7.63,217.61,217.45,7.34]
[1758648926517,7.63,217.59,217.45,7.34]
[1758648927117,4.1341,217.58,217.48,4.1357]
[1758648927321,7.63,217.57,217.48,4.1357]
[1758648927525,7.63,217.57,217.45,7.34]
[1758648927729,7.63,217.57,217.49,4.1354]
[1758648928230,7.63,217.57,217.51,4.1352]
[1758648928427,7.63,217.57,217.49,71.6726]
[1758648928824,7.63,217.57,217.49,71.6721]
[1758648929023,111.92,217.61,217.49,71.6721]
[1758648929421,116.0534,217.61,217.49,7.34]
[1758648929930,111.92,217.61,217.49,7.34]
[1758648930231,7.63,217.62,217.51,64.3264]
[1758648930431,4.1337,217.6,217.5,4.1353]
[1758648930732,7.63,217.62,217.5,4.1353]
[1758648931230,7.63,217.6,217.49,7.34]
[1758648931624,11.7637,217.6,217.49,7.34]
[1758648931826,7.63,217.6,217.48,4.1357]
[1758648932932,4.1343,217.56,217.48,4.1357]
[1758648933321,7.63,217.57,217.48,4.1357]
[1758648933732,11.7641,217.57,217.49,4.1355]
[1758648933924,64.2954,217.62,217.39,7.34]
[1758648933925,7.63,217.55,217.39,7.34]
[1758648934131,91.55,217.55,217.39,7.34]
[1758648934827,64.3249,217.52,217.39,7.34]
[1758648935025,7.63,217.51,217.39,7.34]
[1758648935428,7.63,217.47,217.39,7.34]
[1758648936129,7.63,217.51,217.39,7.34]
[1758648936530,4.93612578,217.5,217.4,4.1373]
[1758648936832,0.80062578,217.5,217.4,4.1373]
[1758648937430,7.63,217.47,217.4,4.1373]
[1758648937837,11.7662,217.47,217.38,4.1377]
[1758648938134,7.63,217.47,217.38,4.1377]
[1758648938335,4.1364,217.46,217.38,4.1377]
[1758648938536,7.63,217.47,217.35,11.4782]
[1758648939134,65.13122578,217.5,217.3,20.51100476]
[1758648939135,7.63,217.43,217.3,20.51100476]
[1758648939335,64.3462,217.45,217.3,20.51100476]
[1758648939533,7.63,217.44,217.3,20.51100476]
[1758648939734,180.6843,217.46,217.3,20.51100476]
[1758648939735,4.1373,217.41,217.32,4.1388]
[1758648939937,7.63,217.41,217.3,20.51100476]
[1758648940238,7.63,217.41,217.31,4.139]
[1758648940442,7.63,217.41,217.31,64.3857]
[1758648940742,7.63,217.41,217.32,4.1387]
[1758648941142,7.63,217.41,217.3,20.51100476]
[1758648941342,4.1374,217.4,217.3,20.51100476]
[1758648942141,7.63,217.43,217.3,20.51100476]
[1758648942645,77.85762212,217.44,217.3,20.51100476]
[1758648942945,7.63,217.43,217.3,24.65010476]
[1758648943746,64.3581,217.41,217.3,13.17100476]
[1758648944046,7.63,217.41,217.3,13.17100476]
[1758648944951,117.42,217.4,217.3,13.17100476]
[1758648945252,117.42,217.44,217.33,64.3801]
[1758648945444,117.42,217.44,217.35,4.1382]
[1758648945640,117.42,217.44,217.34,64.3759]
[1758648945946,7.63,217.45,217.34,64.3759]
[1758648946347,7.63,217.45,217.35,7.34]
[1758648946846,7.63,217.45,217.3,20.51100476]
[1758648947447,7.63,217.45,217.3,84.89930476]
[1758648947650,117.44,217.46,217.3,84.89930476]
[1758648947845,4.1366,217.44,217.3,24.65020476]
[1758648948045,64.3508,217.43,217.3,20.51100476]
[1758648948242,64.3536,217.42,217.3,20.51100476]
[1758648948449,64.357,217.41,217.3,13.17100476]
[1758648948641,7.63,217.4,217.3,13.17100476]
[1758648948955,7.63,217.4,217.3,17.31020476]
[1758648949249,68.67,217.45,217.32,7.34]
[1758648949443,4.1366,217.44,217.33,4.1387]
[1758648949644,68.67,217.45,217.35,7.34]
[1758648950249,68.67,217.45,217.37,4.1378]
[1758648950955,61.04,217.45,217.37,4.1378]
[1758648951150,61.04,217.45,217.39,4.1374]
[1758648951347,61.04,217.45,217.35,7.34]
[1758648951553,7.63,217.44,217.35,7.34]
[1758648952347,7.63,217.44,217.35,71.7136]
[1758648952550,61.04,217.45,217.35,7.34]
[1758648952746,7.63,217.49,217.35,7.34]
[1758648952946,210.58861309,217.75,217.35,7.34]
[1758648952947,7.63,217.53,217.4,7.34]
[1758648953142,3.11684278,217.52,217.4,7.34]
[1758648953353,3.11968231,217.51,217.4,7.34]
[1758648953546,0.8005521,217.52,217.4,71.6987]
[1758648953746,0.8005521,217.52,217.4,7.34]
[1758648954049,7.2,217.49,217.4,7.34]
[1758648955149,3.12258984,217.48,217.4,7.34]
[1758648955354,7.2,217.49,217.33,70.96121915]
[1758648955355,3.12240318,217.47,217.36,4.1379]
[1758648955655,7.2,217.45,217.3,13.17100476]
[1758648955859,7.25910318,217.44,217.32,4.1388]
[1758648956150,7.2,217.45,217.32,4.1388]
[1758648956344,3.123869,217.44,217.32,4.1388]
[1758648956549,3.123869,217.43,217.32,4.1388]
[1758648956854,3.123869,217.42,217.32,4.1388]
[1758648957054,4.1368,217.43,217.32,4.1388]
[1758648957248,3.12573892,217.42,217.32,4.1388]
[1758648957448,3.12573892,217.41,217.32,4.1388]
[1758648957648,7.2,217.45,217.33,7.27]
[1758648957853,3.12546613,217.44,217.36,7.27]
[1758648958056,115.14,217.46,217.37,64.3682]
[1758648958244,3.12773504,217.45,217.37,64.3682]
[1758648958447,115.14,217.46,217.37,64.3682]
[1758648958653,3.12773652,217.45,217.37,64.3682]
[1758648958852,7.2,217.5,217.4,7.27]
[1758648959052,3.12798068,217.49,217.4,7.27]
[1758648959359,3.12798068,217.48,217.41,4.1371]
[1758648959546,118.8805521,217.52,217.4,7.27]
[1758648959754,3.12922063,217.51,217.42,4.1368]
[1758648959949,0.8005521,217.52,217.4,7.27]
[1758648959950,3.12927208,217.5,217.4,7.27]
[1758648960150,118.04,217.54,217.43,64.3493]
[1758648960454,3.13077586,217.53,217.44,7.27]
[1758648960662,3.13077586,217.52,217.4,64.3587]
[1758648960952,0.80048765,217.54,217.45,7.27]
[1758648961156,3.13092542,217.53,217.45,7.27]
[1758648961347,0.80048765,217.54,217.45,7.27]
[1758648961348,0.80048765,217.54,217.48,4.1358]